bitfinex-derivatives/quotes_BTCF0:USTF0_20250129
["timestamp","ask_amount","ask_price","bid_price","bid_amount"]
[1738177550806,0.195328,102410.0,102390.0,0.00146466]
[1738177551013,0.195336,102400.0,102390.0,0.00146466]
[1738177551518,0.556136,102400.0,102390.0,0.00146466]
[1738177551719,0.195355,102390.0,102380.0,0.00014685]
[1738177551914,0.195355,102390.0,102380.0,1e-08]
[1738177551915,0.76872203,102390.0,102380.0,1e-08]
[1738177552121,1.06872203,102390.0,102380.0,1e-08]
[1738177552415,0.195412,102360.0,102350.0,0.00341959]
[1738177552607,1.12957903,102360.0,102350.0,0.00341959]
[1738177552815,1.42957903,102360.0,102350.0,5.9e-07]
[1738177553016,0.195489,102320.0,102310.0,0.00195484]
[1738177553218,0.917089,102320.0,102310.0,0.00195484]
[1738177553614,0.88738307,102320.0,102310.0,0.00195484]
[1738177554009,0.21271388,102330.0,102310.0,0.00195484]
[1738177554010,0.00014685,102330.0,102310.0,0.00195484]
[1738177554322,0.36094685,102330.0,102320.0,0.195489]
[1738177554621,0.36094685,102330.0,102310.0,0.00195484]
[1738177554622,0.195489,102320.0,102310.0,0.00195484]
[1738177554820,0.556289,102320.0,102310.0,0.00195484]
[1738177555119,0.558289,102320.0,102310.0,0.00195484]
[1738177555313,0.002,102320.0,102310.0,0.19746284]
[1738177555517,0.002,102320.0,102310.0,0.55826284]
[1738177555730,0.002,102320.0,102310.0,0.19746284]
[1738177556023,0.36094685,102330.0,102310.0,1.69746284]
[1738177556217,0.001,102320.0,102310.0,1.70446284]
[1738177556518,0.3618,102320.0,102310.0,1.50895484]
[1738177557316,0.557289,102320.0,102310.0,1.50895484]
[1738177557625,0.556289,102320.0,102310.0,1.50595484]
[1738177557814,0.3608,102320.0,102310.0,0.00595484]
[1738177558021,0.36094685,102330.0,102310.0,0.20145784]
[1738177558220,0.36094685,102330.0,102320.0,1.5]
[1738177558719,0.36226652,102360.0,102320.0,1.8608]
[1738177559016,0.36226652,102360.0,102350.0,0.195432]
[1738177559224,0.36226652,102360.0,102340.0,0.195438]
[1738177559609,0.36226652,102360.0,102350.0,0.195432]
[1738177559814,0.00146652,102360.0,102350.0,0.556232]
[1738177560011,0.00146652,102360.0,102350.0,0.195432]
[1738177560215,0.00014685,102370.0,102360.0,0.195413]
[1738177560420,0.00014685,102370.0,102360.0,0.556213]
[1738177560817,0.00014685,102370.0,102360.0,2.056213]
[1738177561219,0.71615383,102410.0,102400.0,0.195336]
[1738177561220,0.1427868,102410.0,102400.0,0.195336]
[1738177561831,0.1427868,102410.0,102400.0,1.695336]
[1738177562022,0.1427868,102410.0,102400.0,2.056136]
[1738177562221,0.1427868,102410.0,102400.0,1.695336]
[1738177562524,0.1477868,102410.0,102400.0,2.057136]
[1738177562728,8e-07,102410.0,102400.0,2.15968384]
[1738177563127,8e-07,102410.0,102400.0,2.45968384]
[1738177563325,8e-07,102410.0,102400.0,2.57201532]
[1738177563642,8e-07,102410.0,102400.0,2.17436384]
[1738177564267,8e-07,102410.0,102400.0,1.5]
[1738177564268,0.3608,102410.0,102400.0,1.5]
[1738177564426,0.556117,102410.0,102390.0,0.19550085]
[1738177564737,0.57336703,102430.0,102390.0,0.19550085]
[1738177564918,0.3608,102440.0,102390.0,0.57351388]
[1738177565123,0.556063,102440.0,102410.0,0.195299]
[1738177565323,0.195263,102440.0,102420.0,0.195297]
[1738177565526,0.556063,102440.0,102410.0,0.195309]
[1738177565920,0.3608,102420.0,102390.0,0.002]
[1738177566127,0.3608,102420.0,102390.0,0.197355]
[1738177566128,0.3608,102400.0,102390.0,0.197355]
[1738177566322,0.195319,102410.0,102390.0,0.197355]
[1738177566633,0.195336,102400.0,102390.0,0.00214685]
[1738177566932,0.55612,102410.0,102390.0,0.00214685]
[1738177567133,0.47046516,102430.0,102400.0,0.3608]
[1738177567321,0.36226516,102430.0,102410.0,0.19531]
[1738177567521,0.556108,102420.0,102390.0,0.19550085]
[1738177567830,0.36226516,102430.0,102410.0,0.195303]
[1738177568024,0.36226516,102430.0,102420.0,0.195298]
[1738177568226,0.36226516,102430.0,102400.0,0.3608]
[1738177568433,0.36226516,102430.0,102390.0,1.86202685]
[1738177568637,0.195321,102410.0,102390.0,0.196429]
[1738177568823,0.195301,102420.0,102390.0,0.00108]
[1738177569029,0.1953,102420.0,102400.0,0.19547485]
[1738177569338,0.36426516,102430.0,102420.0,0.195298]
[1738177569535,0.36426516,102430.0,102410.0,0.195314]
[1738177569728,0.00346516,102430.0,102420.0,0.556098]
[1738177570232,0.3608,102460.0,102430.0,0.195268]
[1738177570432,0.3608,102460.0,102420.0,0.3608]
[1738177570433,0.55605,102450.0,102420.0,0.195294]
[1738177570746,0.3608,102470.0,102440.0,0.556043]
[1738177570927,0.00146465,102480.0,102450.0,0.3608]
[1738177571123,0.00146465,102480.0,102470.0,0.195203]
[1738177571328,0.7933758,102490.0,102470.0,0.195203]
[1738177571534,0.7933758,102490.0,102470.0,0.556003]
[1738177571727,0.555993,102480.0,102450.0,0.3608]
[1738177571943,0.195227,102460.0,102440.0,0.58452]
[1738177572126,0.76857103,102470.0,102440.0,0.58452]
[1738177572439,0.195222,102460.0,102450.0,0.00014685]
[1738177572635,0.556022,102460.0,102450.0,0.00014685]
[1738177572831,0.195222,102460.0,102450.0,0.00014685]
[1738177573236,0.556022,102460.0,102450.0,0.00014685]
[1738177573640,0.21256703,102470.0,102450.0,0.36094685]
[1738177573834,0.4395758,102490.0,102460.0,0.3608]
[1738177574030,0.4395758,102490.0,102480.0,0.195184]
[1738177574743,0.4325758,102490.0,102480.0,0.3608]
[1738177574930,0.9885548,102490.0,102450.0,0.57336703]
[1738177575125,0.9885548,102490.0,102430.0,0.57336703]
[1738177575126,0.3608,102480.0,102430.0,0.57336703]
[1738177575326,0.195254,102450.0,102430.0,0.21256703]
[1738177575525,0.3608,102440.0,102430.0,0.40783903]
[1738177575742,0.3608,102450.0,102420.0,0.19675941]
[1738177575940,0.556045,102450.0,102430.0,0.40784203]
[1738177576144,0.556048,102450.0,102430.0,0.21256703]
[1738177576330,0.195268,102440.0,102420.0,0.19690726]
[1738177576537,0.3608,102450.0,102440.0,0.19526]
[1738177576839,0.3608,102470.0,102430.0,0.57336703]
[1738177577039,0.3608,102460.0,102450.0,0.40780403]
[1738177577232,0.3608,102470.0,102450.0,0.76860403]
[1738177577436,0.00146444,102480.0,102460.0,0.3608]
[1738177577738,0.55745144,102480.0,102460.0,1.695213]
[1738177577948,0.19665144,102480.0,102460.0,1.695213]
[1738177578147,0.00146444,102480.0,102460.0,1.695213]
[1738177578333,0.00146444,102480.0,102470.0,0.40777003]
[1738177578529,0.00146444,102480.0,102470.0,0.21256703]
[1738177578744,0.19665244,102480.0,102460.0,1.695218]
[1738177579245,0.00146444,102480.0,102470.0,0.40777003]
[1738177579544,0.36226444,102480.0,102460.0,0.00108]
[1738177579843,0.00146444,102480.0,102460.0,0.305204]
[1738177580032,0.19664944,102480.0,102460.0,0.195204]
[1738177580233,0.556011,102470.0,102450.0,0.27638485]
[1738177580433,0.3608,102460.0,102450.0,0.08114685]
[1738177580638,0.3608,102470.0,102460.0,0.197222]
[1738177580838,0.00146444,102480.0,102470.0,0.195203]
[1738177581039,0.00146444,102480.0,102470.0,0.97857003]
[1738177581236,0.00146444,102480.0,102470.0,0.61777003]
[1738177581435,0.55744944,102480.0,102460.0,0.195215]
[1738177581634,0.3608,102470.0,102460.0,0.235215]
[1738177581937,0.556007,102470.0,102450.0,1.99094888]
[1738177582138,0.556007,102470.0,102450.0,0.48794888]
[1738177582331,0.556022,102460.0,102450.0,0.08014685]
[1738177582736,0.556022,102460.0,102420.0,0.19675941]
[1738177582737,0.195267,102440.0,102420.0,0.19675941]
[1738177582935,0.3608,102430.0,102420.0,0.19675941]
[1738177583532,0.556079,102430.0,102420.0,0.00146441]
[1738177583935,0.556079,102430.0,102390.0,0.21256703]
[1738177583936,0.195336,102400.0,102390.0,0.21256703]
[1738177584131,0.3608,102400.0,102390.0,0.00146533]
[1738177584448,0.556136,102400.0,102390.0,0.00146533]
[1738177584940,0.00014685,102410.0,102390.0,0.21256703]
[1738177585145,0.00014685,102410.0,102400.0,0.195336]
[1738177585335,0.00014685,102410.0,102400.0,0.556136]
[1738177585533,0.00014685,102410.0,102400.0,0.3608]
[1738177585736,0.19546385,102410.0,102400.0,0.3608]
[1738177585931,0.19546385,102410.0,102390.0,1.695353]
[1738177586141,0.55626385,102410.0,102390.0,1.695353]
[1738177586336,0.3608,102400.0,102390.0,1.695353]
[1738177586935,0.36094685,102410.0,102400.0,0.195336]
[1738177587135,0.91706385,102410.0,102400.0,0.002]
[1738177587942,0.195336,102400.0,102390.0,1.502]
[1738177588250,0.556136,102400.0,102390.0,1.502]
[1738177588433,0.556136,102400.0,102390.0,0.002]
[1738177588741,0.556136,102400.0,102380.0,0.20000285]
[1738177588948,0.3608,102390.0,102380.0,1.70000285]
[1738177589443,0.3608,102390.0,102380.0,0.00463685]
[1738177589637,0.556155,102390.0,102380.0,0.20001185]
[1738177589838,0.556155,102390.0,102380.0,0.00463685]
[1738177590539,1.23416703,102390.0,102330.0,0.21264528]
[1738177590748,0.556232,102350.0,102340.0,0.195444]
[1738177591244,0.195451,102340.0,102330.0,0.19554525]
[1738177591548,0.556251,102340.0,102330.0,7.825e-05]
[1738177592241,0.19547,102330.0,102320.0,0.00014685]
[1738177592452,0.55627,102330.0,102320.0,0.00014685]
[1738177594856,0.55727,102330.0,102300.0,0.41345085]
[1738177595044,0.556289,102320.0,102300.0,0.41345085]
[1738177595345,0.3608,102320.0,102310.0,0.195508]
[1738177595540,0.3618,102330.0,102320.0,0.195489]
[1738177595937,0.3618,102330.0,102320.0,1.695489]
[1738177596448,0.3618,102330.0,102320.0,1.5]
[1738177596654,0.55727,102330.0,102320.0,1.5]
[1738177597348,0.3618,102330.0,102320.0,1.5]
[1738177597544,0.55727,102330.0,102320.0,1.5]
[1738177598053,0.3618,102330.0,102320.0,1.5]
[1738177598246,0.3618,102330.0,102320.0,1.695489]
[1738177598447,0.3618,102330.0,102320.0,1.751489]
[1738177598651,0.001,102330.0,102320.0,1.751489]
[1738177598945,0.00014685,102340.0,102330.0,0.19547]
[1738177599149,0.00014685,102340.0,102320.0,1.506]
[1738177599341,0.55627,102330.0,102320.0,1.506]
[1738177599546,0.55627,102330.0,102320.0,0.006]
[1738177599948,0.55627,102330.0,102320.0,1.506]
[1738177600548,0.55627,102330.0,102320.0,0.006]
[1738177600848,0.3608,102330.0,102320.0,0.1]
[1738177601053,0.3608,102330.0,102320.0,1.795489]
[1738177601354,0.55627,102330.0,102320.0,1.695489]
[1738177601553,0.3608,102330.0,102320.0,1.745489]
[1738177601763,0.3618,102330.0,102320.0,1.702489]
[1738177601947,0.55727,102330.0,102320.0,0.007]
[1738177602144,0.85727,102330.0,102320.0,1e-06]
[1738177602348,0.85727,102330.0,102300.0,0.05265085]
[1738177602349,0.57436703,102330.0,102300.0,0.05265085]
[1738177602554,1.12967503,102310.0,102300.0,0.05265085]
[1738177602942,0.556308,102310.0,102300.0,0.05265085]
[1738177603141,0.76887503,102310.0,102300.0,0.05265085]
[1738177603361,0.195547,102290.0,102280.0,0.00146633]
[1738177603541,0.917147,102290.0,102280.0,0.00146633]
[1738177603854,0.93416703,102290.0,102250.0,0.195619]
[1738177604151,0.93416703,102290.0,102230.0,0.58476]
[1738177604152,0.3608,102260.0,102230.0,0.58476]
[1738177604351,0.3608,102250.0,102230.0,0.12]
[1738177604552,0.556442,102240.0,102230.0,0.12]
[1738177604745,0.556442,102240.0,102230.0,0.315661]
[1738177604941,0.556442,102240.0,102230.0,0.12]
[1738177605151,0.556442,102240.0,102230.0,0.12014685]
[1738177605656,0.556442,102240.0,102230.0,0.00214685]
[1738177606046,0.556442,102240.0,102230.0,0.19780785]
[1738177606350,0.556442,102240.0,102230.0,0.00214685]
[1738177606550,0.917242,102240.0,102230.0,0.00214685]
[1738177606946,0.7216,102240.0,102230.0,0.19780785]
[1738177607142,0.19677585,102250.0,102230.0,0.41294685]
[1738177607143,0.00114685,102250.0,102230.0,0.41294685]
[1738177607445,0.00114685,102250.0,102240.0,0.195642]
[1738177607751,0.00014685,102250.0,102240.0,0.195642]
[1738177607958,0.19577485,102250.0,102230.0,0.20280185]
[1738177608251,0.00014685,102250.0,102240.0,0.195642]
[1738177608457,0.00014685,102250.0,102240.0,0.295642]
[1738177608656,0.00514685,102250.0,102240.0,0.196642]
[1738177608852,0.56156985,102250.0,102240.0,0.001]
[1738177609855,0.77413688,102250.0,102240.0,0.001]
[1738177610648,0.195642,102240.0,102230.0,0.00014685]
[1738177610847,0.556442,102240.0,102230.0,0.19580785]
[1738177611048,0.3608,102240.0,102230.0,0.19580785]
[1738177611255,0.57351388,102250.0,102230.0,0.00014685]
[1738177611552,0.556442,102240.0,102230.0,0.00014685]
[1738177611754,0.3608,102240.0,102210.0,1.5]
[1738177611958,0.556461,102230.0,102210.0,0.195696]
[1738177612155,0.55648,102220.0,102210.0,0.195696]
[1738177612351,0.19568,102220.0,102210.0,0.195696]
[1738177612547,0.55648,102220.0,102210.0,0.195696]
[1738177612760,0.57336703,102230.0,102210.0,0.195696]
[1738177612948,0.76903603,102230.0,102210.0,1.695696]
[1738177613149,0.76918288,102230.0,102210.0,1.695696]
[1738177613458,0.3608,102220.0,102210.0,1.695696]
[1738177613652,0.76918288,102230.0,102210.0,1.5]
[1738177613860,0.76918288,102230.0,102220.0,0.19568]
[1738177613861,0.00014685,102230.0,102220.0,0.19568]
[1738177614054,0.00014685,102230.0,102220.0,0.29568]
[1738177614261,0.00014685,102230.0,102220.0,0.65648]
[1738177614447,1e-08,102230.0,102220.0,0.29568]
[1738177614653,1e-08,102230.0,102220.0,0.65648]
[1738177614965,1e-08,102230.0,102220.0,0.65948]
[1738177616858,1e-08,102230.0,102220.0,0.65648]
[1738177617054,0.556416,102260.0,102220.0,0.4678]
[1738177617255,0.3608,102260.0,102240.0,0.195639]
[1738177617557,0.3608,102260.0,102230.0,0.3608]
[1738177617558,0.195642,102240.0,102230.0,0.195655]
[1738177617762,0.001,102230.0,102220.0,0.006]
[1738177618061,0.77004703,102230.0,102220.0,0.006]
[1738177618561,0.76904703,102230.0,102210.0,1.69584285]
[1738177618865,0.19568,102220.0,102210.0,1.74584285]
[1738177619166,0.19568,102220.0,102210.0,1.80584285]
[1738177620060,0.55648,102220.0,102210.0,1.50014685]
[1738177620361,0.55648,102220.0,102210.0,0.00014685]
[1738177620561,0.55648,102220.0,102210.0,1e-08]
[1738177621066,0.195699,102210.0,102200.0,0.1]
[1738177621259,0.76906603,102210.0,102200.0,0.1]
[1738177621455,0.3608,102210.0,102200.0,0.295719]
[1738177621765,0.5565,102210.0,102200.0,0.295719]
[1738177622068,0.3608,102220.0,102210.0,0.1957]
[1738177622362,0.36094685,102220.0,102210.0,0.2457]
[1738177622567,0.00014685,102220.0,102210.0,0.2457]
[1738177622755,0.00014685,102220.0,102210.0,1.6957]
[1738177622955,0.55662685,102220.0,102210.0,1.5]
[1738177623163,0.195699,102210.0,102200.0,0.1]
[1738177623462,0.3608,102210.0,102200.0,0.338719]
[1738177623653,0.3608,102210.0,102200.0,0.298719]
[1738177623858,0.3608,102210.0,102200.0,0.408719]
[1738177624055,0.3608,102210.0,102200.0,0.295719]
[1738177624258,0.56463485,102220.0,102210.0,0.195699]
[1738177624660,0.36894685,102220.0,102200.0,0.1]
[1738177624859,0.3608,102210.0,102200.0,0.415719]
[1738177625064,0.556499,102210.0,102200.0,0.296719]
[1738177625263,0.556499,102210.0,102200.0,0.101]
[1738177625663,0.3608,102210.0,102200.0,0.346719]
[1738177625868,0.55663185,102220.0,102210.0,0.195699]
[1738177625869,0.00014685,102220.0,102210.0,0.195699]
[1738177626064,0.3608,102220.0,102210.0,0.195696]
[1738177626263,0.195665,102230.0,102220.0,0.19568]
[1738177626470,0.00146812,102240.0,102230.0,0.195661]
[1738177626768,0.00146812,102240.0,102230.0,0.746461]
[1738177627064,0.00146812,102240.0,102230.0,2.246461]
[1738177628059,0.20282721,102250.0,102240.0,0.195642]
[1738177628365,0.57336703,102250.0,102230.0,0.09781386]
[1738177628572,0.3608,102240.0,102220.0,0.00014685]
[1738177628766,0.57336703,102230.0,102200.0,0.1]
[1738177629070,0.76906603,102210.0,102200.0,0.1]
[1738177629368,0.21256703,102210.0,102200.0,0.295719]
[1738177629571,0.76906603,102210.0,102200.0,0.1]
[1738177631072,0.195719,102200.0,102190.0,0.00014685]
[1738177631273,0.3608,102200.0,102150.0,0.67895798]
[1738177631471,0.3608,102170.0,102150.0,1.01476498]
[1738177631768,0.76916203,102160.0,102150.0,0.40445798]
[1738177631973,0.93416703,102160.0,102120.0,0.85924412]
[1738177632272,1.13002003,102130.0,102120.0,0.85924412]
[1738177632470,1.13002003,102130.0,102120.0,0.31955721]
[1738177633063,0.195872,102120.0,102110.0,0.50958419]
[1738177633265,0.19591,102100.0,102090.0,0.00146965]
[1738177633460,0.93416703,102100.0,102090.0,0.00146965]
[1738177633667,0.21256703,102100.0,102090.0,0.19739865]
[1738177633866,0.57336703,102100.0,102090.0,0.19739865]
[1738177634066,0.57436703,102120.0,102090.0,0.00146965]
[1738177634270,0.57436703,102120.0,102110.0,0.195891]
[1738177634569,0.93531388,102120.0,102110.0,0.195891]
[1738177634763,0.72274685,102120.0,102110.0,0.195891]
[1738177635160,0.36094685,102120.0,102110.0,0.195891]
[1738177635468,0.6187696,102160.0,102150.0,0.195814]
[1738177635769,0.6187696,102160.0,102150.0,1.695814]
[1738177636858,0.2579696,102160.0,102150.0,1.695814]
[1738177637461,0.2579696,102160.0,102150.0,2.056614]
[1738177637856,0.00014685,102170.0,102160.0,0.195795]
[1738177638060,0.3608,102170.0,102140.0,0.19596385]
[1738177638268,0.3608,102150.0,102140.0,0.00014685]
[1738177638666,0.3608,102150.0,102140.0,1.69597985]
[1738177639866,0.14972565,102160.0,102150.0,0.196814]
[1738177640564,0.14472565,102160.0,102150.0,1.745814]
[1738177640769,0.53429456,102170.0,102150.0,1.9108]
[1738177640968,0.20241032,102190.0,102150.0,1.9108]
[1738177640969,0.56321032,102190.0,102160.0,0.40836203]
[1738177641168,0.56321032,102190.0,102170.0,0.195773]
[1738177641469,0.56321032,102190.0,102170.0,0.04]
[1738177641470,0.20241032,102190.0,102170.0,0.04]
[1738177641770,0.56321032,102190.0,102170.0,0.195776]
[1738177641980,0.556569,102180.0,102170.0,0.00014685]
[1738177642166,0.3608,102180.0,102170.0,0.00014685]
[1738177642468,0.75909617,102190.0,102170.0,0.00014685]
[1738177642669,0.3608,102180.0,102170.0,0.00014685]
[1738177642873,0.3608,102180.0,102150.0,1.9912921]
[1738177643074,0.3608,102180.0,102160.0,0.19579]
[1738177643568,0.3608,102170.0,102120.0,0.57483612]
[1738177643769,0.3608,102170.0,102120.0,0.78542612]
[1738177643770,0.556629,102150.0,102120.0,0.78542612]
[1738177643970,0.556653,102130.0,102120.0,0.00146909]
[1738177644171,0.556653,102130.0,102120.0,0.00014685]
[1738177644366,0.195896,102110.0,102090.0,0.195926]
[1738177644574,0.556711,102100.0,102070.0,0.63388904]
[1738177644775,0.556711,102100.0,102080.0,0.195944]
[1738177644970,0.556695,102110.0,102080.0,0.375944]
[1738177645172,0.3608,102100.0,102080.0,0.195944]
[1738177645367,0.3608,102090.0,102070.0,0.36088904]
[1738177645573,0.556723,102100.0,102080.0,0.19594]
[1738177645776,0.55686985,102100.0,102080.0,0.19608685]
[1738177646073,0.55686985,102100.0,102080.0,1.50014685]
[1738177646979,0.36094685,102100.0,102090.0,0.195929]
[1738177647180,0.00014685,102100.0,102090.0,0.195929]
[1738177647478,0.00114685,102100.0,102090.0,0.235929]
[1738177647675,0.00146958,102120.0,102090.0,0.8132353]
[1738177647876,0.81292389,102150.0,102110.0,0.3608]
[1738177648079,0.81291789,102150.0,102130.0,0.195849]
[1738177648379,0.3608,102140.0,102130.0,0.195849]
[1738177648571,0.61710289,102150.0,102120.0,0.57336703]
[1738177648772,0.25630289,102150.0,102120.0,0.78336703]
[1738177648971,0.3608,102140.0,102130.0,0.195839]
[1738177649273,0.195853,102130.0,102120.0,0.00014685]
[1738177649472,0.556653,102130.0,102120.0,0.00014685]
[1738177650579,0.556653,102130.0,102120.0,0.00114685]
[1738177650967,0.556653,102130.0,102090.0,0.409782]
[1738177651173,0.3608,102120.0,102110.0,0.195887]
[1738177651479,0.556672,102120.0,102110.0,0.195887]
[1738177651675,0.3608,102120.0,102110.0,0.195887]
[1738177652067,0.3608,102120.0,102110.0,1.695887]
[1738177652275,0.00014685,102130.0,102120.0,0.195872]
[1738177652469,0.00014685,102130.0,102120.0,0.235872]
[1738177652668,1e-08,102130.0,102120.0,0.80923903]
[1738177652875,0.3608,102130.0,102110.0,1.86188]
[1738177653184,0.3608,102120.0,102100.0,0.00014685]
[1738177653375,0.556691,102110.0,102100.0,0.00014685]
[1738177653767,0.3608,102110.0,102100.0,0.24604385]
[1738177653975,0.55683485,102120.0,102100.0,0.19604385]
[1738177654172,0.55683485,102120.0,102110.0,0.001]
[1738177654775,0.55683485,102120.0,102110.0,0.05]
[1738177654976,0.55683485,102120.0,102100.0,0.19804885]
[1738177655175,0.55683485,102120.0,102100.0,0.42804885]
[1738177655581,0.556691,102110.0,102100.0,0.00214685]
[1738177655976,0.55682185,102120.0,102100.0,0.30804985]
[1738177656284,0.556691,102110.0,102100.0,0.00214685]
[1738177656578,0.36094685,102120.0,102100.0,0.06214685]
[1738177656786,0.55982285,102120.0,102100.0,0.25605485]
[1738177657376,0.36394685,102120.0,102110.0,0.195891]
[1738177657577,0.55681885,102120.0,102110.0,0.195891]
[1738177657775,0.55681885,102120.0,102110.0,0.245891]
[1738177657776,0.36094685,102120.0,102110.0,0.245891]
[1738177657979,0.00014685,102120.0,102110.0,0.606691]
[1738177659080,0.00014685,102120.0,102110.0,0.607691]
[1738177659987,0.00014685,102120.0,102110.0,0.246891]
[1738177660190,0.36094685,102120.0,102110.0,0.246891]
[1738177660383,0.00014685,102120.0,102110.0,0.607691]
[1738177660686,0.00014685,102120.0,102110.0,0.608691]
[1738177661580,0.00014685,102120.0,102110.0,0.606691]
[1738177661887,0.00014685,102120.0,102110.0,0.609691]
[1738177662278,0.00014685,102120.0,102110.0,2.109691]
[1738177662479,1e-08,102120.0,102110.0,2.22105713]
[1738177662679,1e-08,102120.0,102110.0,0.72105713]
[1738177662985,0.55667201,102120.0,102110.0,0.003]
[1738177663687,0.55767201,102120.0,102110.0,0.003]
[1738177664385,0.00300001,102120.0,102110.0,0.14]
[1738177664683,0.64006098,102160.0,102110.0,0.65721295]
[1738177664684,0.556617,102150.0,102110.0,0.65721295]
[1738177664873,0.3608,102140.0,102110.0,0.29641495]
[1738177665078,0.556656,102130.0,102110.0,0.335881]
[1738177665274,0.3608,102120.0,102110.0,0.141]
[1738177665473,0.3608,102120.0,102110.0,0.336885]
[1738177666582,0.36094685,102130.0,102120.0,0.195872]
[1738177666785,0.36094685,102130.0,102120.0,0.245872]
[1738177667083,0.36094685,102130.0,102110.0,0.001]
[1738177667274,0.55680585,102130.0,102120.0,1.5]
[1738177667474,0.55680585,102130.0,102120.0,1.905872]
[1738177667475,0.36094685,102130.0,102120.0,1.905872]
[1738177667682,0.00014685,102130.0,102120.0,1.905872]
[1738177668483,0.00014685,102130.0,102120.0,2.267672]
[1738177668683,0.00014685,102130.0,102120.0,1.906872]
[1738177668883,0.00014685,102130.0,102120.0,2.267672]
[1738177670089,0.1746656,102140.0,102130.0,0.195853]
[1738177670281,0.1746656,102140.0,102130.0,0.766653]
[1738177670782,0.1746656,102140.0,102130.0,1.905853]
[1738177670982,0.3608,102150.0,102140.0,0.195833]
[1738177671186,0.3608,102150.0,102130.0,1.5]
[1738177671391,0.3608,102140.0,102130.0,0.245849]
[1738177671593,0.3628,102140.0,102130.0,0.295849]
[1738177672183,0.3628,102140.0,102130.0,0.195849]
[1738177672384,0.3608,102140.0,102130.0,0.245849]
[1738177672581,0.3608,102140.0,102130.0,0.195849]
[1738177672786,0.556633,102140.0,102120.0,0.19601185]
[1738177672994,0.3608,102130.0,102120.0,0.19601185]
[1738177673495,0.3608,102130.0,102120.0,0.00014685]
[1738177673696,0.556653,102130.0,102120.0,0.00014685]
[1738177674096,0.556653,102130.0,102120.0,0.19601885]
[1738177674800,0.556653,102130.0,102120.0,0.24701885]
[1738177675390,0.3608,102130.0,102120.0,0.24701885]
[1738177676092,0.3608,102140.0,102130.0,0.195853]
[1738177676399,0.70270807,102150.0,102130.0,0.395853]
[1738177676592,0.1746656,102140.0,102130.0,0.395853]
[1738177676804,0.1746656,102140.0,102130.0,1.895853]
[1738177677002,0.1746656,102140.0,102130.0,2.256653]
[1738177677297,0.1746656,102140.0,102130.0,1.895853]
[1738177677687,0.1746656,102140.0,102130.0,2.256653]
[1738177677887,0.1776656,102140.0,102130.0,2.256653]
[1738177678097,0.5384656,102140.0,102130.0,1.895853]
[1738177678494,0.5354656,102140.0,102130.0,1.895853]
[1738177678695,0.5374656,102140.0,102130.0,1.895853]
[1738177678893,0.1766656,102140.0,102130.0,1.895853]
[1738177679486,0.002,102140.0,102130.0,2.36560953]
[1738177679795,0.00014685,102150.0,102140.0,0.195833]
[1738177679992,0.00014685,102150.0,102140.0,0.96920003]
[1738177680191,0.00014685,102150.0,102140.0,1.07344931]
[1738177680393,0.00014685,102150.0,102140.0,2.03390225]
[1738177680706,0.00014685,102150.0,102130.0,0.195843]
[1738177680707,0.195833,102140.0,102130.0,0.195843]
[1738177680898,0.556633,102140.0,102130.0,0.245843]
[1738177681093,0.556633,102140.0,102130.0,1.695843]
[1738177681296,0.3608,102140.0,102130.0,1.805843]
[1738177681587,0.55976485,102150.0,102130.0,1.805843]
[1738177681588,0.00314685,102150.0,102140.0,0.195833]
[1738177681804,0.00014685,102150.0,102140.0,0.405833]
[1738177681997,0.00014685,102150.0,102140.0,0.97920003]
[1738177682297,0.20387927,102180.0,102170.0,0.195776]
[1738177682499,0.20241032,102180.0,102170.0,0.255776]
[1738177682691,0.56321032,102180.0,102160.0,0.21256703]
[1738177682893,0.556576,102170.0,102160.0,1.5]
[1738177683097,0.56321032,102180.0,102160.0,1.59]
[1738177683397,0.3608,102170.0,102160.0,1.785787]
[1738177683791,0.556576,102170.0,102150.0,0.19595785]
[1738177683988,0.556595,102160.0,102150.0,0.00014685]
[1738177684791,0.57336703,102160.0,102120.0,0.195869]
[1738177685001,0.3608,102130.0,102120.0,0.12]
[1738177685199,0.556618,102150.0,102130.0,0.195837]
[1738177685506,0.56158,102170.0,102150.0,0.195814]
[1738177685703,0.005,102170.0,102160.0,0.195795]
[1738177685999,0.561576,102170.0,102160.0,1.5]
[1738177686194,0.561576,102170.0,102150.0,0.19595685]
[1738177686396,0.556576,102170.0,102150.0,0.28595685]
[1738177686706,0.004,102160.0,102150.0,1.78595685]
[1738177687193,0.87150685,102180.0,102160.0,0.195787]
[1738177687393,0.005,102170.0,102160.0,0.315787]
[1738177687802,0.3658,102170.0,102160.0,0.315787]
[1738177687991,0.3608,102170.0,102160.0,0.195787]
[1738177688304,0.004,102160.0,102150.0,0.19595885]
[1738177688504,0.004,102160.0,102150.0,0.36595885]
[1738177688804,0.004,102160.0,102150.0,1.69595885]
[1738177689199,0.004,102160.0,102150.0,0.00014685]
[1738177689505,0.560595,102160.0,102150.0,0.00014685]
[1738177689695,0.561595,102160.0,102150.0,0.00014685]
[1738177689897,0.3658,102160.0,102130.0,0.2401362]
[1738177690099,0.3658,102160.0,102140.0,0.195831]
[1738177690306,0.557598,102160.0,102140.0,0.405831]
[1738177690508,0.001,102160.0,102150.0,0.195815]
[1738177690693,0.001,102160.0,102150.0,0.305815]
[1738177690891,0.001,102160.0,102150.0,0.355815]
[1738177691099,0.556579,102170.0,102150.0,0.355815]
[1738177691299,0.005,102160.0,102150.0,0.355815]
[1738177692300,0.195814,102150.0,102140.0,0.00014685]
[1738177692503,0.561604,102160.0,102140.0,0.19598085]
[1738177692699,0.556614,102150.0,102140.0,0.29254157]
[1738177694497,0.556614,102150.0,102140.0,0.29454157]
[1738177694700,0.712753,102150.0,102120.0,0.40935261]
[1738177694899,0.917453,102130.0,102120.0,0.40935261]
[1738177695100,0.195872,102120.0,102110.0,0.30935356]
[1738177695410,0.556672,102120.0,102110.0,0.30935356]
[1738177695707,0.556672,102120.0,102110.0,0.26652595]
[1738177696209,0.556672,102120.0,102110.0,0.46241695]
[1738177696692,0.556672,102120.0,102100.0,0.46800491]